fUST/lending_fUST_20250507
["ID","MTS","AMOUNT","RATE_DAILY","PERIOD"]
[360115623,1746555048460,-151.0,0.00019329,2]
[360115624,1746555048471,-151.0,0.00019329,2]
[360115625,1746555048480,-151.0,0.00019329,2]
[360115626,1746555048491,-151.0,0.00019329,2]
[360115627,1746555048501,-162.93695,0.00019329,2]
[360115628,1746555048510,-162.93695,0.00019329,2]
[360115629,1746555048520,-151.0,0.00019329,2]
[360115630,1746555048530,-100000.0,0.00019329,2]
[360115631,1746555048541,-168.3888056,0.00019343,2]
[360115632,1746555048551,-174.61919141,0.00019398,2]
[360115633,1746555048560,-151.0,0.000194,2]
[360115634,1746555048570,-120769.40556013,0.00019452,3]
[360115635,1746555048580,-212.03916285,0.00019452,3]
[360115636,1746555048589,-12610.21250885,0.00019452,3]
[360115637,1746555048600,-160.0,0.00019452,3]
[360115638,1746555048609,-313.9004746,0.00019452,3]
[360115639,1746555048619,-841.96455721,0.00019452,3]
[360115640,1746555048628,-281893.9515717,0.00019452,2]
[360115641,1746555048637,-153.201412,0.00019452,2]
[360115642,1746555048647,-151.0,0.00019452,2]
[360115643,1746555048656,-151.0,0.00019452,2]
[360115644,1746555048665,-153.140766,0.00019452,2]
[360115645,1746555048674,-151.0,0.00019452,2]
[360115646,1746555048683,-151.0,0.00019452,2]
[360115647,1746555048692,-151.0,0.00019452,2]
[360115648,1746555048702,-151.0,0.00019452,2]
[360115649,1746555048711,-281.695694,0.00019452,2]
[360115650,1746555048722,-281.695694,0.00019452,2]
[360115651,1746555048734,-371.027915,0.00019452,2]
[360115652,1746555048746,-371.027915,0.00019452,2]
[360115653,1746555048755,-400.0,0.00019452,2]
[360115654,1746555048765,-151.0,0.00019452,2]
[360115655,1746555048783,-400.0,0.00019452,2]
[360115656,1746555048796,-296.88359585,0.00019452,2]
[360115657,1746555048807,-400.0,0.00019452,2]
[360115658,1746555048817,-400.0,0.00019452,2]
[360115659,1746555048828,-405.48311805,0.00019452,2]
[360115660,1746555048838,-400.0,0.00019452,2]
[360115661,1746555048848,-400.0,0.00019452,2]
[360115662,1746555048857,-511.39966207,0.00019452,2]
[360115663,1746555048867,-400.0,0.00019452,2]
[360115664,1746555048877,-400.0,0.00019452,2]
[360115665,1746555048887,-400.0,0.00019452,2]
[360115666,1746555048896,-400.0,0.00019452,2]
[360115667,1746555048906,-507.8850277,0.00019452,2]
[360115668,1746555048916,-307.91332687,0.00019452,2]
[360115669,1746555048926,-400.0,0.00019452,2]
[360115670,1746555048936,-204.21910831,0.00019452,2]
[360115671,1746555048945,-401.8274264,0.00019452,2]
[360115672,1746555048955,-400.0,0.00019452,2]
[360115673,1746555048965,-400.0,0.00019452,2]
[360115674,1746555048976,-400.0,0.00019452,2]
[360115675,1746555048986,-400.0,0.00019452,2]
[360115676,1746555048996,-984.36,0.00019452,2]
[360115677,1746555049006,-400.0,0.00019452,2]
[360115678,1746555049016,-400.0,0.00019452,2]
[360115679,1746555049026,-400.0,0.00019452,2]
[360115680,1746555049036,-400.0,0.00019452,2]
[360115681,1746555049046,-400.0,0.00019452,2]
[360115682,1746555049056,-400.0,0.00019452,2]
[360115683,1746555049066,-400.0,0.00019452,2]
[360115684,1746555049076,-400.0,0.00019452,2]
[360115685,1746555049086,-400.0,0.00019452,2]
[360115686,1746555049096,-400.0,0.00019452,2]
[360115687,1746555049106,-400.0,0.00019452,2]
[360115688,1746555049115,-400.0,0.00019452,2]
[360115689,1746555049125,-204.85885003,0.00019452,2]
[360115690,1746555049135,-343.05919239,0.00019452,2]
[360115691,1746555049145,-400.0,0.00019452,2]
[360115692,1746555049156,-401.28101685,0.00019452,2]
[360115693,1746555049165,-400.0,0.00019452,2]
[360115694,1746555049176,-357.10086959,0.00019452,2]
[360115695,1746555049185,-509.23200127,0.00019452,2]
[360115696,1746555049195,-400.0,0.00019452,2]
[360115697,1746555049206,-400.0,0.00019452,2]
[360115698,1746555049215,-400.0,0.00019452,2]
[360115699,1746555049227,-400.0,0.00019452,2]
[360115700,1746555049238,-400.0,0.00019452,2]
[360115701,1746555049247,-400.0,0.00019452,2]
[360115702,1746555049256,-400.0,0.00019452,2]
[360115703,1746555049269,-400.0,0.00019452,2]
[360115704,1746555049280,-400.0,0.00019452,2]
[360115705,1746555049290,-400.0,0.00019452,2]
[360115706,1746555049299,-400.0,0.00019452,2]
[360115707,1746555049309,-151.0,0.00019452,2]
[360115708,1746555049319,-400.0,0.00019452,2]
[360115709,1746555049328,-400.0,0.00019452,2]
[360115710,1746555049338,-407.5,0.00019452,2]
[360115711,1746555049347,-400.0,0.00019452,2]
[360115712,1746555049357,-400.0,0.00019452,2]
[360115713,1746555049366,-400.0,0.00019452,2]
[360115714,1746555049376,-317.15975652,0.00019452,2]
[360115715,1746555049386,-400.0,0.00019452,2]
[360115716,1746555049396,-400.0,0.00019452,2]
[360115717,1746555049407,-400.0,0.00019452,2]
[360115718,1746555049417,-437.22,0.00019452,2]
[360115719,1746555049427,-400.0,0.00019452,2]
[360115720,1746555049575,-400.0,0.00019452,2]
[360115721,1746555049586,-400.0,0.00019452,2]
[360115722,1746555049596,-400.0,0.00019452,2]
[360115723,1746555049605,-400.0,0.00019452,2]
[360115724,1746555049616,-400.0,0.00019452,2]
[360115725,1746555049625,-400.0,0.00019452,2]
[360115726,1746555049636,-151.0,0.00019452,2]
[360115727,1746555049647,-461.86,0.00019452,2]
[360115728,1746555049658,-400.0,0.00019452,2]
[360115729,1746555049668,-400.0,0.00019452,2]
[360115730,1746555049678,-510.75279138,0.00019452,2]
[360115731,1746555049687,-400.0,0.00019452,2]
[360115732,1746555049697,-400.0,0.00019452,2]
[360115733,1746555049706,-458.42,0.00019452,2]
[360115734,1746555049716,-400.0,0.00019452,2]
[360115735,1746555049728,-400.0,0.00019452,2]
[360115736,1746555049743,-400.0,0.00019452,2]
[360115737,1746555049754,-400.0,0.00019452,2]
[360115738,1746555049764,-400.0,0.00019452,2]
[360115739,1746555049776,-469.63,0.00019452,2]
[360115740,1746555049786,-1379.79,0.00019452,2]
[360115741,1746555049797,-500.0,0.00019452,2]
[360115742,1746555049807,-353.28047129,0.00019452,2]
[360115743,1746555049821,-358.0,0.00019452,2]
[360115744,1746555049830,-400.0,0.00019452,2]
[360115745,1746555049840,-151.0,0.00019452,2]
[360115746,1746555049851,-400.0,0.00019452,2]
[360115747,1746555049861,-509.01718628,0.00019452,2]
[360115748,1746555049871,-176.639,0.00019452,2]
[360115749,1746555049881,-346.12022662,0.00019452,2]
[360115750,1746555049892,-613.43,0.00019452,2]
[360115751,1746555049903,-400.0,0.00019452,2]
[360115752,1746555049914,-400.0,0.00019452,2]
[360115753,1746555049924,-151.0,0.00019452,2]
[360115754,1746555049935,-400.0,0.00019452,2]
[360115755,1746555049945,-1000.0,0.00019452,2]
[360115756,1746555049955,-400.0,0.00019452,2]
[360115757,1746555049965,-400.0,0.00019452,2]
[360115758,1746555049976,-400.0,0.00019452,2]
[360115759,1746555049985,-405.99455463,0.00019452,2]
[360115760,1746555049995,-151.0,0.00019452,2]
[360115761,1746555050005,-400.0,0.00019452,2]
[360115762,1746555050015,-400.0,0.00019452,2]
[360115763,1746555050025,-151.0,0.00019452,2]
[360115764,1746555050034,-400.0,0.00019452,2]
[360115765,1746555050044,-400.0,0.00019452,2]
[360115766,1746555050054,-400.0,0.00019452,2]
[360115767,1746555050064,-400.0,0.00019452,2]
[360115768,1746555050074,-400.0,0.00019452,2]
[360115769,1746555050085,-563.37,0.00019452,2]
[360115770,1746555050096,-151.0,0.00019452,2]
[360115771,1746555050105,-481.53152116,0.00019452,2]
[360115772,1746555050115,-202.21434323,0.00019452,2]
[360115773,1746555050125,-400.0,0.00019452,2]
[360115774,1746555050134,-400.0,0.00019452,2]
[360115775,1746555050144,-557.65,0.00019452,2]
[360115776,1746555050154,-401.72877858,0.00019452,2]
[360115777,1746555050164,-326.10167798,0.00019452,2]
[360115778,1746555050174,-400.0,0.00019452,2]
[360115779,1746555050184,-1052.77,0.00019452,2]
[360115780,1746555050194,-400.0,0.00019452,2]
[360115781,1746555050204,-400.0,0.00019452,2]
[360115782,1746555050215,-518.87988151,0.00019452,2]
[360115783,1746555050224,-212.45092939,0.00019452,2]
[360115784,1746555050233,-460.53,0.00019452,2]
[360115785,1746555050243,-400.0,0.00019452,2]
[360115786,1746555050253,-400.0,0.00019452,2]
[360115787,1746555050263,-400.0,0.00019452,2]
[360115788,1746555050274,-400.0,0.00019452,2]
[360115789,1746555050283,-400.0,0.00019452,2]
[360115790,1746555050293,-400.0,0.00019452,2]
[360115791,1746555050303,-1756.62,0.00019452,2]
[360115792,1746555050312,-400.0,0.00019452,2]
[360115793,1746555050322,-400.0,0.00019452,2]
[360115794,1746555050331,-582.88,0.00019452,2]
[360115795,1746555050341,-400.0,0.00019452,2]
[360115796,1746555050351,-406.16086678,0.00019452,2]
[360115797,1746555050361,-400.0,0.00019452,2]
[360115798,1746555050371,-400.0,0.00019452,2]
[360115799,1746555050381,-400.0,0.00019452,2]
[360115800,1746555050391,-400.0,0.00019452,2]
[360115801,1746555050401,-400.0,0.00019452,2]
[360115802,1746555050411,-400.0,0.00019452,2]
[360115803,1746555050421,-400.0,0.00019452,2]
[360115804,1746555050431,-151.0,0.00019452,2]
[360115805,1746555050441,-400.0,0.00019452,2]
[360115806,1746555050451,-400.0,0.00019452,2]
[360115807,1746555050461,-151.0,0.00019452,2]
[360115808,1746555050471,-400.0,0.00019452,2]
[360115809,1746555050481,-675.2,0.00019452,2]
[360115810,1746555050491,-451.51,0.00019452,2]
[360115811,1746555050500,-500.0,0.00019452,2]
[360115812,1746555050510,-400.0,0.00019452,2]
[360115813,1746555050520,-463.5,0.00019452,2]
[360115814,1746555050529,-151.0,0.00019452,2]
[360115815,1746555050539,-407.00011108,0.00019452,2]
[360115816,1746555050549,-400.0,0.00019452,2]
[360115817,1746555050558,-338.53186601,0.00019452,2]
[360115818,1746555050567,-400.0,0.00019452,2]
[360115819,1746555050577,-400.0,0.00019452,2]
[360115820,1746555050586,-176.52210069,0.00019452,2]
[360115821,1746555050595,-400.0,0.00019452,2]
[360115822,1746555050605,-506.97744387,0.00019452,2]
[360115823,1746555050615,-400.0,0.00019452,2]
[360115824,1746555050624,-400.0,0.00019452,2]
[360115825,1746555050634,-400.0,0.00019452,2]
[360115826,1746555050643,-1994.82,0.00019452,2]
[360115827,1746555050653,-400.0,0.00019452,2]
[360115828,1746555050663,-401.8360317,0.00019452,2]
[360115829,1746555050672,-400.0,0.00019452,2]
[360115830,1746555050681,-400.0,0.00019452,2]
[360115831,1746555050692,-400.0,0.00019452,2]
[360115832,1746555050703,-1428.88,0.00019452,2]
[360115833,1746555050713,-400.0,0.00019452,2]
[360115834,1746555050723,-400.0,0.00019452,2]
[360115835,1746555050735,-400.0,0.00019452,2]
[360115836,1746555050745,-400.0,0.00019452,2]
[360115837,1746555050755,-625.03,0.00019452,2]
[360115838,1746555050765,-400.0,0.00019452,2]
[360115839,1746555050775,-400.0,0.00019452,2]
[360115840,1746555050786,-400.0,0.00019452,2]
[360115841,1746555050796,-400.0,0.00019452,2]
[360115842,1746555050806,-585.31,0.00019452,2]
[360115843,1746555050816,-400.0,0.00019452,2]
[360115844,1746555050826,-400.0,0.00019452,2]
[360115845,1746555050836,-509.59,0.00019452,2]
[360115846,1746555050845,-400.0,0.00019452,2]
[360115847,1746555050855,-400.0,0.00019452,2]
[360115848,1746555050864,-400.0,0.00019452,2]
[360115849,1746555050874,-400.0,0.00019452,2]
[360115850,1746555050883,-400.0,0.00019452,2]
[360115851,1746555050893,-505.72161325,0.00019452,2]
[360115852,1746555050903,-689.89,0.00019452,2]
[360115853,1746555050913,-844.65,0.00019452,2]
[360115854,1746555050923,-400.0,0.00019452,2]
[360115855,1746555050934,-1000.0,0.00019452,2]
[360115856,1746555050944,-400.0,0.00019452,2]
[360115857,1746555050955,-400.0,0.00019452,2]
[360115858,1746555050965,-400.0,0.00019452,2]
[360115859,1746555050975,-208.44611728,0.00019452,2]
[360115860,1746555050985,-1175.32,0.00019452,2]
[360115861,1746555050994,-400.0,0.00019452,2]
[360115862,1746555051006,-1026.77,0.00019452,2]
[360115863,1746555051016,-400.0,0.00019452,2]
[360115864,1746555051026,-400.0,0.00019452,2]
[360115865,1746555051035,-400.0,0.00019452,2]
[360115866,1746555051044,-400.0,0.00019452,2]
[360115867,1746555051054,-400.0,0.00019452,2]
[360115868,1746555051063,-400.0,0.00019452,2]
[360115869,1746555051074,-400.0,0.00019452,2]
[360115870,1746555051084,-242.78921981,0.00019452,2]
[360115871,1746555051093,-585.18,0.00019452,2]
[360115872,1746555051103,-400.0,0.00019452,2]
[360115873,1746555051112,-400.0,0.00019452,2]
[360115874,1746555051122,-400.0,0.00019452,2]
[360115875,1746555051132,-400.0,0.00019452,2]
[360115876,1746555051141,-400.0,0.00019452,2]
[360115877,1746555051151,-474.87,0.00019452,2]
[360115878,1746555051161,-400.0,0.00019452,2]
[360115879,1746555051171,-400.0,0.00019452,2]
[360115880,1746555051181,-400.0,0.00019452,2]
[360115881,1746555051190,-400.0,0.00019452,2]
[360115882,1746555051307,-400.0,0.00019452,2]
[360115883,1746555051318,-400.0,0.00019452,2]
[360115884,1746555051328,-400.0,0.00019452,2]
[360115885,1746555051337,-400.0,0.00019452,2]
[360115886,1746555051347,-400.0,0.00019452,2]
[360115887,1746555051357,-642.63,0.00019452,2]
[360115888,1746555051366,-400.0,0.00019452,2]
[360115889,1746555051375,-400.0,0.00019452,2]
[360115890,1746555051385,-151.0,0.00019452,2]
[360115891,1746555051395,-400.0,0.00019452,2]
[360115892,1746555051405,-400.0,0.00019452,2]
[360115893,1746555051415,-400.0,0.00019452,2]
[360115894,1746555051424,-400.0,0.00019452,2]
[360115895,1746555051434,-400.0,0.00019452,2]
[360115896,1746555051444,-400.0,0.00019452,2]
[360115897,1746555051460,-400.0,0.00019452,2]
[360115898,1746555051469,-400.0,0.00019452,2]
[360115899,1746555051480,-400.0,0.00019452,2]
[360115900,1746555051490,-408.2952987,0.00019452,2]
[360115901,1746555051500,-400.0,0.00019452,2]
[360115902,1746555051509,-400.0,0.00019452,2]
[360115903,1746555051520,-400.0,0.00019452,2]
[360115904,1746555051529,-400.0,0.00019452,2]
[360115905,1746555051539,-151.0,0.00019452,2]
[360115906,1746555051549,-400.0,0.00019452,2]
[360115907,1746555051560,-400.0,0.00019452,2]
[360115908,1746555051569,-400.0,0.00019452,2]
[360115909,1746555051579,-400.0,0.00019452,2]
[360115910,1746555051589,-1524.57,0.00019452,2]
[360115911,1746555051598,-400.0,0.00019452,2]
[360115912,1746555051608,-400.0,0.00019452,2]
[360115913,1746555051622,-753.36,0.00019452,2]
[360115914,1746555051633,-400.0,0.00019452,2]
[360115915,1746555051643,-400.0,0.00019452,2]
[360115916,1746555051653,-400.0,0.00019452,2]
[360115917,1746555051663,-400.0,0.00019452,2]
[360115918,1746555051673,-898.37,0.00019452,2]
[360115919,1746555051683,-400.0,0.00019452,2]
[360115920,1746555051695,-400.0,0.00019452,2]
[360115921,1746555051705,-400.0,0.00019452,2]
[360115922,1746555051715,-400.0,0.00019452,2]
[360115923,1746555051726,-1095.13,0.00019452,2]
[360115924,1746555051738,-400.0,0.00019452,2]
[360115925,1746555051749,-561.19,0.00019452,2]
[360115926,1746555051758,-417.89,0.00019452,2]
[360115927,1746555051768,-400.0,0.00019452,2]
[360115928,1746555051778,-400.0,0.00019452,2]
[360115929,1746555051788,-400.0,0.00019452,2]
[360115930,1746555051798,-400.0,0.00019452,2]
[360115931,1746555051807,-400.0,0.00019452,2]
[360115932,1746555051817,-192.079047,0.00019452,2]
[360115933,1746555051827,-400.0,0.00019452,2]
[360115934,1746555051836,-504.16376864,0.00019452,2]
[360115935,1746555051846,-400.0,0.00019452,2]
[360115936,1746555051855,-192.079047,0.00019452,2]
[360115937,1746555051865,-400.0,0.00019452,2]
[360115938,1746555051874,-400.0,0.00019452,2]
[360115939,1746555051883,-1308.2,0.00019452,2]
[360115940,1746555051893,-400.0,0.00019452,2]
[360115941,1746555051903,-400.0,0.00019452,2]
[360115942,1746555051913,-151.0,0.00019452,2]
[360115943,1746555051924,-400.0,0.00019452,2]
[360115944,1746555051934,-5262.57,0.00019452,2]
[360115945,1746555051945,-400.0,0.00019452,2]
[360115946,1746555051955,-400.0,0.00019452,2]
[360115947,1746555051965,-428.54,0.00019452,2]
[360115948,1746555051975,-758.88,0.00019452,2]
[360115949,1746555051985,-151.0,0.00019452,2]
[360115950,1746555051995,-400.0,0.00019452,2]
[360115951,1746555052005,-400.0,0.00019452,2]
[360115952,1746555052014,-867.45,0.00019452,2]
[360115953,1746555052024,-415.90034457,0.00019452,2]
[360115954,1746555052034,-400.0,0.00019452,2]
[360115955,1746555052045,-400.0,0.00019452,2]
[360115956,1746555052055,-400.0,0.00019452,2]
[360115957,1746555052065,-400.0,0.00019452,2]
[360115958,1746555052074,-400.0,0.00019452,2]
[360115959,1746555052084,-400.0,0.00019452,2]
[360115960,1746555052094,-400.0,0.00019452,2]
[360115961,1746555052103,-1734.58,0.00019452,2]
[360115962,1746555052112,-400.0,0.00019452,2]
[360115963,1746555052122,-405.48514162,0.00019452,2]
[360115964,1746555052131,-506.65,0.00019452,2]
[360115965,1746555052140,-400.0,0.00019452,2]
[360115966,1746555052150,-400.0,0.00019452,2]
[360115967,1746555052159,-512.42057002,0.00019452,2]
[360115968,1746555052168,-3371.95,0.00019452,2]
[360115969,1746555052177,-400.0,0.00019452,2]
[360115970,1746555052187,-400.0,0.00019452,2]
[360115971,1746555052196,-500.0,0.00019452,2]
[360115972,1746555052205,-400.0,0.00019452,2]
[360115973,1746555052214,-400.0,0.00019452,2]
[360115974,1746555052223,-1635.25,0.00019452,2]
[360115975,1746555052232,-400.0,0.00019452,2]
[360115976,1746555052241,-1172.28,0.00019452,2]
[360115977,1746555052251,-781.9,0.00019452,2]
[360115978,1746555052260,-855.56,0.00019452,2]
[360115979,1746555052269,-400.0,0.00019452,2]
[360115980,1746555052278,-400.0,0.00019452,2]
[360115981,1746555052287,-565.81,0.00019452,2]
[360115982,1746555052296,-400.0,0.00019452,2]
[360115983,1746555052305,-152.884301,0.00019452,2]
[360115984,1746555052315,-400.0,0.00019452,2]
[360115985,1746555052324,-510.74,0.00019452,2]
[360115986,1746555052333,-400.0,0.00019452,2]
[360115987,1746555052343,-400.0,0.00019452,2]
[360115988,1746555052352,-2446.14,0.00019452,2]
[360115989,1746555052361,-400.0,0.00019452,2]
[360115990,1746555052370,-964.72,0.00019452,2]
[360115991,1746555052379,-400.0,0.00019452,2]
[360115992,1746555052388,-400.0,0.00019452,2]
[360115993,1746555052398,-400.0,0.00019452,2]
[360115994,1746555052407,-895.02,0.00019452,2]
[360115995,1746555052416,-495.61,0.00019452,2]
[360115996,1746555052425,-428.69,0.00019452,2]
[360115997,1746555052434,-400.0,0.00019452,2]
[360115998,1746555052443,-400.0,0.00019452,2]
[360115999,1746555052453,-400.0,0.00019452,2]
[360116000,1746555052462,-400.0,0.00019452,2]
[360116001,1746555052471,-400.0,0.00019452,2]
[360116002,1746555052480,-505.86301473,0.00019452,2]
[360116003,1746555052490,-400.8255333,0.00019452,2]
[360116004,1746555052499,-400.0,0.00019452,2]
[360116005,1746555052509,-400.0,0.00019452,2]
[360116006,1746555052518,-151.0,0.00019452,2]
[360116007,1746555052528,-400.0,0.00019452,2]
[360116008,1746555052537,-400.0,0.00019452,2]
[360116009,1746555052546,-400.0,0.00019452,2]
[360116010,1746555052555,-400.0,0.00019452,2]
[360116011,1746555052564,-400.0,0.00019452,2]
[360116012,1746555052574,-1515.05,0.00019452,2]
[360116013,1746555052584,-400.0,0.00019452,2]
[360116014,1746555052593,-400.0,0.00019452,2]
[360116015,1746555052602,-404.06834625,0.00019452,2]
[360116016,1746555052612,-400.0,0.00019452,2]
[360116017,1746555052621,-400.0,0.00019452,2]
[360116018,1746555052631,-400.0,0.00019452,2]
[360116019,1746555052640,-400.0,0.00019452,2]
[360116020,1746555052652,-518.61,0.00019452,2]
[360116021,1746555052664,-400.0,0.00019452,2]
[360116022,1746555052673,-449.36,0.00019452,2]
[360116023,1746555052682,-400.0,0.00019452,2]
[360116024,1746555052691,-840.75,0.00019452,2]
[360116025,1746555052701,-501.77136801,0.00019452,2]
[360116026,1746555052711,-553.59,0.00019452,2]
[360116027,1746555052720,-400.0,0.00019452,2]
[360116028,1746555052730,-400.0,0.00019452,2]
[360116029,1746555052742,-779.44,0.00019452,2]
[360116030,1746555052849,-401.33723472,0.00019452,2]
[360116031,1746555052859,-194.85663739,0.00019452,2]
[360116032,1746555052869,-400.0,0.00019452,2]
[360116033,1746555052879,-569.36,0.00019452,2]
[360116034,1746555052889,-400.0,0.00019452,2]
[360116035,1746555052898,-1103.28,0.00019452,2]
[360116036,1746555052908,-400.0,0.00019452,2]
[360116037,1746555052918,-400.0,0.00019452,2]
[360116038,1746555052929,-449.53782653,0.00019452,2]
[360116039,1746555052939,-400.0,0.00019452,2]
[360116040,1746555052949,-400.0,0.00019452,2]
[360116041,1746555052959,-400.0,0.00019452,2]
[360116042,1746555052968,-2143.33,0.00019452,2]
[360116043,1746555052978,-1940.39,0.00019452,2]
[360116044,1746555052987,-400.0,0.00019452,2]
[360116045,1746555052997,-611.24,0.00019452,2]
[360116046,1746555053007,-151.0,0.00019452,2]
[360116047,1746555053017,-151.0,0.00019452,2]
[360116048,1746555053027,-400.0,0.00019452,2]
[360116049,1746555053036,-400.0,0.00019452,2]
[360116050,1746555053046,-400.0,0.00019452,2]
[360116051,1746555053056,-945.39,0.00019452,2]
[360116052,1746555053065,-4275.0,0.00019452,2]
[360116053,1746555053075,-518.187357,0.00019452,2]
[360116054,1746555053084,-400.0,0.00019452,2]
[360116055,1746555053093,-400.0,0.00019452,2]
[360116056,1746555053103,-518.187357,0.00019452,2]
[360116057,1746555053113,-400.0,0.00019452,2]
[360116058,1746555053122,-692.67,0.00019452,2]
[360116059,1746555053132,-400.0,0.00019452,2]
[360116060,1746555053141,-3008.22,0.00019452,2]
[360116061,1746555053150,-634.58,0.00019452,2]
[360116062,1746555053159,-400.0,0.00019452,2]
[360116063,1746555053168,-417.45388257,0.00019452,2]
[360116064,1746555053177,-400.0,0.00019452,2]
[360116065,1746555053187,-503.64168324,0.00019452,2]
[360116066,1746555053196,-400.0,0.00019452,2]
[360116067,1746555053206,-400.0,0.00019452,2]
[360116068,1746555053216,-400.0,0.00019452,2]
[360116069,1746555053225,-224.44762557,0.00019452,2]
[360116070,1746555053235,-666.84,0.00019452,2]
[360116071,1746555053245,-1965.93,0.00019452,2]
[360116072,1746555053254,-414.38058515,0.00019452,2]
[360116073,1746555053263,-2621.11,0.00019452,2]
[360116074,1746555053273,-546.22406821,0.00019452,2]
[360116075,1746555053284,-151.0,0.00019452,2]
[360116076,1746555053293,-400.0,0.00019452,2]
[360116077,1746555053302,-151.0,0.00019452,2]
[360116078,1746555053312,-400.0,0.00019452,2]
[360116079,1746555053321,-500.0,0.00019452,2]
[360116080,1746555053331,-671.76,0.00019452,2]
[360116081,1746555053340,-400.0,0.00019452,2]
[360116082,1746555053350,-404.56256714,0.00019452,2]
[360116083,1746555053359,-400.0,0.00019452,2]
[360116084,1746555053369,-400.0,0.00019452,2]
[360116085,1746555053378,-400.0,0.00019452,2]
[360116086,1746555053388,-400.0,0.00019452,2]
[360116087,1746555053398,-2394.23,0.00019452,2]
[360116088,1746555053408,-400.0,0.00019452,2]
[360116089,1746555053417,-1988.55,0.00019452,2]
[360116090,1746555053426,-227.75999,0.00019452,2]
[360116091,1746555053435,-400.0,0.00019452,2]
[360116092,1746555053444,-227.75999,0.00019452,2]
[360116093,1746555053453,-400.0,0.00019452,2]
[360116094,1746555053462,-400.0,0.00019452,2]
[360116095,1746555053472,-1762.42,0.00019452,2]
[360116096,1746555053481,-400.0,0.00019452,2]
[360116097,1746555053491,-400.0,0.00019452,2]
[360116098,1746555053504,-227.75999,0.00019452,2]
[360116099,1746555053526,-402.77319095,0.00019452,2]
[360116100,1746555053543,-227.75999,0.00019452,2]
[360116101,1746555053564,-400.0,0.00019452,2]
[360116102,1746555053587,-400.0,0.00019452,2]
[360116103,1746555053604,-593.48,0.00019452,2]
[360116104,1746555053623,-216.6160112,0.00019452,2]
[360116105,1746555053638,-400.0,0.00019452,2]
[360116106,1746555053656,-403.32021454,0.00019452,2]
[360116107,1746555053675,-400.0,0.00019452,2]
[360116108,1746555053695,-647.42,0.00019452,2]
[360116109,1746555053707,-400.0,0.00019452,2]
[360116110,1746555053728,-231.50128477,0.00019452,2]
[360116111,1746555053744,-400.0,0.00019452,2]
[360116112,1746555053760,-400.0,0.00019452,2]
[360116113,1746555053775,-400.0,0.00019452,2]
[360116114,1746555053790,-400.0,0.00019452,2]
[360116115,1746555053805,-400.0,0.00019452,2]
[360116116,1746555053820,-400.0,0.00019452,2]
[360116117,1746555053834,-778.7,0.00019452,2]
[360116118,1746555053849,-400.0,0.00019452,2]
[360116119,1746555053866,-500.0,0.00019452,2]
[360116120,1746555053880,-1324.45,0.00019452,2]
[360116121,1746555053896,-400.0,0.00019452,2]
[360116122,1746555053912,-7534.29,0.00019452,2]